bitfinex-derivatives/quotes_SOLF0:USTF0_20260210
["timestamp","ask_amount","ask_price","bid_price","bid_amount"]
[1770750293958,10.894,82.66,82.591,5.37026939]
[1770750294955,10.00066511,82.69,82.607,5.37026939]
[1770750295561,10.00066511,82.71,82.619,5.34686574]
[1770750296860,10.8882,82.704,82.633,5.34686574]
[1770750297259,10.8882,82.704,82.637,5.34686574]
[1770750297659,10.8893,82.695,82.637,5.34686574]
[1770750298060,10.8881,82.705,82.638,10.8968]
[1770750298263,10.8881,82.705,82.639,5.36574079]
[1770750300559,96.56,82.715,82.601,96.56]
[1770750300560,10.03852487,82.69,82.621,5.36428904]
[1770750300962,36.34,82.709,82.63,5.36428904]
[1770750301164,10.03852487,82.71,82.63,5.36428904]
[1770750301459,10.03852487,82.73,82.631,5.36428904]
[1770750301662,10.03852487,82.75,82.666,5.36798422]
[1770750301855,10.03852487,82.75,82.671,5.36798422]
[1770750302863,10.03852487,82.75,82.67,10.03852487]
[1770750302864,96.56,82.768,82.69,5.36798422]
[1770750303064,10.03852487,82.75,82.69,5.36798422]
[1770750303462,10.03852487,82.77,82.692,5.36798422]
[1770750304062,10.03852487,82.77,82.711,10.8871]
[1770750304256,10.03852487,82.77,82.711,5.37051192]
[1770750305367,10.03852487,82.75,82.689,5.37051192]
[1770750306363,10.8822,82.749,82.689,5.37051192]
[1770750306662,10.03852487,82.75,82.669,5.3528543]
[1770750307365,10.03852487,82.73,82.669,5.3528543]
[1770750307569,10.03239972,82.73,82.669,5.3528543]
[1770750308063,10.03239972,82.73,82.641,5.31753356]
[1770750308466,108.02,82.729,82.641,5.31753356]
[1770750308659,36.34,82.767,82.665,5.31753356]
[1770750308860,10.03239972,82.75,82.665,5.31753356]
[1770750309267,10.03239972,82.73,82.665,5.31753356]
[1770750309666,10.8854,82.725,82.665,5.31753356]
[1770750309859,10.03239972,82.73,82.665,5.31753356]
[1770750310266,10.8862,82.719,82.665,5.31753356]
[1770750310769,10.03239972,82.73,82.669,5.30856867]
[1770750310972,10.8841,82.735,82.669,5.30856867]
[1770750311364,10.8824,82.748,82.674,5.30856867]
[1770750311973,10.8838,82.738,82.677,5.30670448]
[1770750313268,10.03239972,82.75,82.677,5.30670448]
[1770750313469,108.06,82.749,82.677,5.30670448]
[1770750314368,108.16,82.748,82.677,5.30670448]
[1770750314569,10.03239972,82.73,82.658,5.31398588]
[1770750315072,10.8858,82.722,82.659,16.20798588]
[1770750315271,10.8858,82.722,82.66,5.31398588]
[1770750316266,10.8846,82.731,82.666,5.31340987]
[1770750317379,10.8856,82.724,82.671,10.8924]
[1770750317676,10.8856,82.724,82.666,5.31340987]
[1770750318880,10.8856,82.724,82.668,5.30321038]
[1770750319776,10.03239972,82.73,82.648,5.29283197]
[1770750320482,44.84852493,82.748,82.659,5.29283197]
[1770750320483,107.96,82.735,82.659,5.29283197]
[1770750320978,10.03239972,82.72,82.659,5.29283197]
[1770750321773,10.8872,82.712,82.661,10.8937]
[1770750322167,10.03239972,82.74,82.673,5.3026587]
[1770750323681,20.91589972,82.74,82.682,10.891]
[1770750323979,20.91589972,82.74,82.682,16.20321823]
[1770750324482,20.91589972,82.74,82.683,5.31221823]
[1770750325074,10.8845,82.732,82.673,10.8922]
[1770750325983,10.03239972,82.72,82.648,5.31246534]
[1770750327172,10.8851,82.727,82.675,10.8919]
[1770750327382,96.52,82.731,82.651,5.31246534]
[1770750327587,10.03239972,82.72,82.651,5.31246534]
[1770750328471,108.02,82.719,82.631,5.30828993]
[1770750329681,10.8892,82.696,82.642,10.8963]
[1770750329886,10.8892,82.696,82.643,5.30052016]
[1770750330179,10.03239972,82.72,82.643,5.30052016]
[1770750330484,10.03239972,82.72,82.652,5.30052016]
[1770750330682,10.03239972,82.74,82.652,5.30052016]
[1770750330885,10.8852,82.727,82.678,10.8915]
[1770750331886,10.886,82.72,82.675,5.30052016]
[1770750332583,10.03239972,82.76,82.678,5.29323591]
[1770750333186,10.03239972,82.76,82.698,5.29323591]
[1770750333379,10.03239972,82.78,82.698,5.29323591]
[1770750333985,8.56497276,82.793,82.719,5.29489473]
[1770750334181,108.18,82.794,82.719,5.29489473]
[1770750334584,10.8771,82.789,82.73,5.29489473]
[1770750334783,10.03239972,82.8,82.73,5.29489473]
[1770750335090,10.03239972,82.82,82.759,5.29489473]
[1770750335690,10.873,82.819,82.761,5.32423914]
[1770750336387,10.03239972,82.84,82.761,5.32423914]
[1770750336592,10.03239972,82.85,82.761,5.32423914]
[1770750337082,10.8704,82.84,82.771,5.32423914]
[1770750338481,10.8704,82.84,82.776,10.8786]
[1770750338883,10.8704,82.84,82.777,5.31601095]
[1770750339077,10.8704,82.84,82.778,10.8783]
[1770750339281,10.8704,82.84,82.777,5.31601095]
[1770750339489,10.03239972,82.83,82.739,5.31766389]
[1770750339784,10.03239972,82.83,82.73,10.03239972]
[1770750339785,96.48,82.829,82.743,5.31766389]
[1770750340087,10.8744,82.809,82.743,5.31766389]
[1770750341286,10.8759,82.797,82.743,5.31766389]
[1770750341688,10.8759,82.797,82.726,5.34363417]
[1770750341888,10.8773,82.787,82.726,5.34363417]
[1770750342683,10.8784,82.779,82.726,5.34363417]
[1770750342888,10.8784,82.779,82.715,10.8865]
[1770750343090,10.8784,82.779,82.716,5.34363417]
[1770750344396,10.03239972,82.81,82.724,5.3609809]
[1770750344590,10.73401758,82.834,82.741,5.3609809]
[1770750344591,10.03239972,82.83,82.741,5.3609809]
[1770750344989,10.03239972,82.83,82.75,5.3609809]
[1770750345697,10.873,82.819,82.756,16.25194625]
[1770750345884,10.873,82.819,82.757,5.37074625]
[1770750346791,10.873,82.819,82.759,5.37074625]
[1770750347900,10.873,82.819,82.76,10.8807]
[1770750348092,10.873,82.819,82.759,5.37074625]
[1770750348398,10.8718,82.828,82.759,5.37074625]
[1770750348994,10.71494593,82.891,82.761,5.3653613]
[1770750349188,10.03239972,82.87,82.781,5.3653613]
[1770750349692,10.8666,82.869,82.809,10.8742]
[1770750349893,10.03239972,82.87,82.8,5.3653613]
[1770750350700,10.8686,82.853,82.8,5.3653613]
[1770750351889,10.8686,82.853,82.801,10.8754]
[1770750352495,10.8672,82.864,82.809,10.8743]
[1770750352803,10.8672,82.864,82.8,5.3653613]
[1770750353799,10.8672,82.864,82.801,10.8753]
[1770750354099,10.03239972,82.89,82.802,5.38208355]
[1770750354902,10.8649,82.881,82.819,10.873]
[1770750355097,10.03239972,82.89,82.802,5.38208355]
[1770750355801,10.03239972,82.89,82.811,10.874]
[1770750355802,10.8671,82.865,82.811,10.874]
[1770750356004,10.03239972,82.87,82.802,5.38208355]
[1770750358405,20.89879972,82.87,82.812,10.8738]
[1770750358605,10.03239972,82.89,82.813,5.38277194]
[1770750359300,10.03239972,82.87,82.781,5.38277194]
[1770750359907,10.03239972,82.87,82.798,5.39386855]
[1770750360400,10.03239972,82.85,82.791,5.39386855]
[1770750360706,10.03239972,82.87,82.791,5.39386855]
[1770750360903,10.8653,82.878,82.818,5.39386855]
[1770750361199,9.99550007,82.88,82.786,96.4]
[1770750361401,10.8667,82.867,82.81,10.8741]
[1770750361600,10.8667,82.867,82.805,5.39386855]
[1770750361805,9.99550007,82.88,82.805,5.39386855]
[1770750362801,10.8677,82.86,82.809,10.8742]
[1770750363002,9.99550007,82.88,82.805,5.39386855]
[1770750363308,9.99550007,82.88,82.77,9.99550007]
[1770750363309,10.8698,82.844,82.79,10.8767]
[1770750363606,36.34,82.878,82.771,5.38153262]
[1770750363607,9.99550007,82.84,82.771,5.38153262]
[1770750364502,10.8728,82.821,82.774,10.8788]
[1770750364698,9.99550007,82.84,82.771,5.38153262]
[1770750364901,9.99550007,82.84,82.732,96.38]
[1770750364902,9.99550007,82.82,82.733,5.37634712]
[1770750365808,10.8749,82.805,82.762,10.8804]
[1770750366909,10.8738,82.813,82.762,10.8804]
[1770750367112,9.99550007,82.82,82.762,10.8804]
[1770750368509,9.99550007,82.82,82.732,96.38]
[1770750368510,109.14,82.828,82.77,5.35841903]
[1770750369212,10.8721,82.826,82.772,10.8792]
[1770750369802,109.14,82.828,82.782,10.8778]
[1770750370006,9.99550007,82.84,82.783,5.35695047]
[1770750370710,10.8705,82.839,82.793,10.8764]
[1770750370915,9.99550007,82.84,82.783,5.35695047]
[1770750371706,10.8713,82.832,82.775,10.8787]
[1770750372210,10.8713,82.832,82.783,10.8777]
[1770750372510,10.8713,82.832,82.766,5.35363049]
[1770750372511,9.99550007,82.84,82.784,5.35363049]
[1770750373313,10.8705,82.839,82.785,10.8774]
[1770750374408,10.8705,82.839,82.784,5.35363049]
[1770750374714,10.8705,82.839,82.792,10.8765]
[1770750375607,10.8705,82.839,82.784,5.35363049]
[1770750375910,10.8713,82.833,82.784,5.35363049]
[1770750376415,10.8722,82.826,82.784,5.35363049]
[1770750376811,10.8722,82.826,82.773,10.879]
[1770750377313,10.8722,82.826,82.776,16.23923172]
[1770750377501,10.8722,82.826,82.777,5.19170129]
[1770750378015,8.6183694,82.847,82.779,5.19170129]
[1770750378613,8.6183694,82.847,82.8,5.19170129]
[1770750378914,10.71494593,82.872,82.8,5.19170129]
[1770750379114,8.66461513,82.874,82.831,5.19170129]
[1770750379414,9.99550007,82.9,82.831,5.19170129]
[1770750380109,10.8649,82.881,82.834,10.871]
[1770750382815,10.8649,82.881,82.831,5.19170129]
[1770750383111,8.66461513,82.903,82.793,5.15663871]
[1770750383112,9.99550007,82.88,82.793,5.15663871]
[1770750383413,10.8658,82.875,82.823,10.8724]
[1770750383814,9.99550007,82.88,82.813,5.15663871]
[1770750384212,9.99550007,82.88,82.79,31.74900007]
[1770750384213,10.71494593,82.896,82.824,5.16695827]
[1770750384414,9.99550007,82.9,82.824,5.16695827]
[1770750385316,9.99550007,82.9,82.835,10.8709]
[1770750385513,9.99550007,82.9,82.836,5.16695827]
[1770750386309,10.8643,82.885,82.837,10.8706]
[1770750386515,20.710446,82.9,82.836,5.16695827]
[1770750386916,10.8645,82.885,82.836,5.16695827]
[1770750387821,10.8634,82.893,82.836,5.16695827]
[1770750388721,10.8642,82.887,82.838,5.19169418]
[1770750390012,10.8651,82.88,82.838,5.19169418]
[1770750390413,9.99550007,82.9,82.838,5.19169418]
[1770750390824,10.865,82.88,82.838,5.19169418]
[1770750391324,20.710446,82.9,82.822,5.26415359]
[1770750391519,9.99550007,82.9,82.826,5.26415359]
[1770750392811,10.8642,82.887,82.835,10.8708]
[1770750394815,9.99550007,82.9,82.826,5.26415359]
[1770750395127,9.99550007,82.88,82.807,5.23483755]
[1770750395326,10.8676,82.86,82.807,5.23483755]
[1770750395625,10.8676,82.86,82.811,10.874]
[1770750396322,10.8676,82.86,82.812,5.23577966]
[1770750396522,10.8676,82.86,82.816,5.23577966]
[1770750397723,10.8685,82.853,82.816,5.23577966]
[1770750399026,10.8694,82.847,82.803,10.8751]
[1770750399833,10.8705,82.838,82.751,5.23831347]
[1770750400025,10.8705,82.838,82.762,5.23831347]
[1770750400528,10.8705,82.838,82.761,96.34]
[1770750400529,10.8705,82.838,82.785,5.23831347]
[1770750400726,10.8714,82.832,82.785,5.23831347]
[1770750401327,9.99550007,82.86,82.785,5.23831347]
[1770750402227,10.8712,82.833,82.795,10.876]
[1770750402634,10.8712,82.833,82.795,16.09970906]
[1770750402931,10.8712,82.833,82.795,5.22370906]
[1770750404825,10.8702,82.841,82.795,5.22370906]
[1770750405227,9.99550007,82.86,82.804,5.21385961]
[1770750405426,10.8681,82.857,82.804,5.21385961]
[1770750405723,9.99550007,82.86,82.804,5.21385961]
[1770750406631,10.8691,82.849,82.804,5.21385961]
[1770750407625,8.66461513,82.862,82.807,5.20606612]
[1770750407825,9.99550007,82.88,82.807,5.20606612]
[1770750408134,10.8656,82.876,82.82,5.18787298]
[1770750408336,9.99550007,82.88,82.82,5.18787298]
[1770750409942,10.869,82.85,82.798,10.8758]
[1770750410539,9.99550007,82.86,82.798,10.8758]
[1770750410741,9.99550007,82.86,82.791,10.8766]
[1770750410742,10.8698,82.844,82.791,10.8766]
[1770750411043,10.8698,82.844,82.789,5.18810541]
[1770750411833,10.8698,82.844,82.797,10.8758]
[1770750412643,10.8708,82.836,82.789,5.18810541]
[1770750413544,10.8708,82.836,82.79,10.8767]
[1770750413748,10.8708,82.836,82.791,5.19847002]
[1770750414049,108.54,82.854,82.791,5.19847002]
[1770750414050,10.8716,82.83,82.791,5.19847002]
[1770750414440,9.99550007,82.84,82.775,10.8787]
[1770750415350,9.99550007,82.84,82.775,16.07717002]
[1770750415847,108.46,82.839,82.76,5.21719192]
[1770750416042,8.66461513,82.838,82.76,5.21719192]
[1770750416840,10.8733,82.817,82.768,5.21719192]
[1770750417436,10.8733,82.817,82.77,5.21719192]
[1770750418749,10.8724,82.824,82.776,5.21337636]
[1770750419248,10.8724,82.824,82.778,5.21337636]
[1770750420646,10.8711,82.834,82.787,5.22994871]
[1770750421450,18.68654119,82.85,82.772,5.22994871]
[1770750421648,10.00306891,82.83,82.772,5.22994871]
[1770750422347,10.8719,82.828,82.781,5.25382809]
[1770750422544,8.68347228,82.84,82.781,5.25382809]
[1770750422742,8.68347228,82.84,82.749,5.25382809]
[1770750422943,3.73629486,82.81,82.761,5.25382809]
[1770750423847,3.73629486,82.81,82.766,5.26317582]
[1770750424148,3.73629486,82.8,82.751,5.26317582]
[1770750424349,103.84,82.824,82.758,5.26317582]
[1770750424556,3.73629486,82.83,82.771,5.26317582]
[1770750424949,3.73629486,82.82,82.771,5.26317582]
[1770750425354,3.73629486,82.81,82.771,5.26317582]
[1770750425855,3.73629486,82.8,82.771,5.26317582]
[1770750426047,3.73629486,82.8,82.751,5.25078361]
[1770750426449,10.86490221,82.85,82.751,5.25078361]
[1770750426450,3.73629486,82.79,82.751,5.25078361]
[1770750426642,3.73629486,82.8,82.751,5.25078361]
[1770750427047,10.8757,82.799,82.76,10.8807]
[1770750427353,3.73629486,82.8,82.761,5.25078361]
[1770750427550,3.73629486,82.81,82.761,5.25078361]
[1770750428057,3.73629486,82.81,82.773,5.23838175]
[1770750428254,3.73629486,82.82,82.773,5.23838175]
[1770750429752,14.60929486,82.82,82.781,10.8779]
[1770750430149,3.73629486,82.83,82.782,5.23923067]
[1770750430350,3.73389439,82.84,82.794,5.23923067]
[1770750430946,8.69802293,82.848,82.794,5.23923067]
[1770750432661,10.8703,82.84,82.794,5.23923067]
[1770750433755,10.8703,82.84,82.796,10.8759]
[1770750434757,10.8694,82.847,82.801,5.23458058]
[1770750434958,10.86490221,82.872,82.801,5.23458058]
[1770750435159,109.04,82.875,82.801,5.23458058]
[1770750435457,8.70966806,82.874,82.801,5.23458058]
[1770750435659,10.00212116,82.86,82.801,5.23458058]
[1770750436358,10.8689,82.851,82.801,5.23458058]
[1770750437855,10.8689,82.851,82.801,16.10988058]
[1770750438052,10.8698,82.844,82.801,5.23458058]
[1770750438248,8.70966806,82.858,82.801,16.10988058]
[1770750438448,8.70966806,82.859,82.801,16.10988058]
[1770750438651,10.00212116,82.86,82.801,16.10988058]
[1770750438958,8.70966806,82.859,82.801,16.10988058]
[1770750439151,8.70966806,82.858,82.801,16.10988058]
[1770750439354,8.70966806,82.857,82.801,16.10988058]
[1770750439556,8.70966806,82.856,82.801,16.10988058]
[1770750439856,10.8688,82.852,82.801,16.10988058]
[1770750440053,8.70966806,82.851,82.801,16.10988058]
[1770750440255,8.70966806,82.85,82.801,5.23458058]
[1770750440562,10.00212116,82.84,82.784,5.22590298]
[1770750441055,8.70966806,82.846,82.784,5.22590298]
[1770750441760,10.8686,82.853,82.804,5.21944409]
[1770750443264,10.869,82.85,82.804,5.21944409]
[1770750443656,8.70966806,82.865,82.816,5.21034779]
[1770750443864,8.70966806,82.883,82.816,5.21034779]
[1770750444165,8.70966806,82.882,82.816,5.21034779]
[1770750444364,8.70966806,82.881,82.816,5.21034779]
[1770750444567,8.70966806,82.889,82.816,5.21034779]
[1770750444867,10.8657,82.875,82.82,5.21034779]
[1770750445261,10.8666,82.868,82.82,5.21034779]
[1770750445661,8.70966806,82.887,82.82,5.21034779]
[1770750445860,10.8676,82.861,82.82,5.21034779]
[1770750446065,8.70966806,82.885,82.82,5.21034779]
[1770750446266,8.70966806,82.884,82.82,5.21034779]
[1770750446469,8.70966806,82.889,82.82,5.21034779]
[1770750447363,18.71178922,82.89,82.82,5.21034779]
[1770750447671,18.71178922,82.89,82.822,5.22552537]
[1770750448868,10.8654,82.877,82.829,5.22552537]
[1770750449658,18.71178922,82.89,82.801,5.22192755]
[1770750449859,10.00212116,82.85,82.785,5.22192755]
[1770750450364,10.8722,82.825,82.785,5.22192755]
[1770750450869,10.8744,82.809,82.761,5.22192755]
[1770750451069,10.00212116,82.83,82.761,5.22192755]
[1770750451263,109.12,82.832,82.761,5.22192755]
[1770750451463,36.34,82.843,82.761,5.22192755]
[1770750451464,10.00212116,82.82,82.761,5.22192755]
[1770750452370,10.8742,82.811,82.761,5.22192755]
[1770750453172,10.875,82.804,82.761,5.22192755]
[1770750453473,10.00212116,82.82,82.73,10.00212116]
[1770750453474,109.12,82.816,82.744,5.17306636]
[1770750453774,8.70966806,82.815,82.744,5.17306636]
[1770750454175,10.00212116,82.8,82.744,5.17306636]
[1770750454471,10.00212116,82.8,82.734,10.8841]
[1770750455567,10.8764,82.794,82.739,5.18220082]
[1770750458272,10.00212116,82.8,82.724,5.12847734]
[1770750458977,96.4,82.812,82.702,96.4]
[1770750458978,3.73854079,82.79,82.731,5.12847734]
[1770750459672,3.73854079,82.79,82.736,10.8838]
[1770750459976,3.73854079,82.79,82.737,5.16338599]
[1770750460375,10.877,82.789,82.737,5.16338599]
[1770750460578,3.73854079,82.78,82.737,5.16338599]
[1770750460875,3.73854079,82.79,82.74,3.73854079]
[1770750461071,3.73854079,82.79,82.744,5.16338599]
[1770750461280,10.86490221,82.841,82.761,5.16338599]
[1770750461480,3.73854079,82.83,82.771,5.16338599]
[1770750461669,3.73854079,82.84,82.801,10.8753]
[1770750461874,3.73854079,82.85,82.802,5.16546097]
[1770750462468,10.8679,82.858,82.802,5.16546097]
[1770750463379,9.99730935,82.88,82.812,5.16546097]
[1770750463780,10.866,82.873,82.813,5.14682759]
[1770750464777,10.866,82.873,82.818,5.14682759]
[1770750465079,9.99730935,82.88,82.818,5.14682759]
[1770750465278,10.8648,82.882,82.818,5.14682759]
[1770750465482,8.67081699,82.902,82.834,5.14682759]
[1770750465783,9.99730935,82.92,82.834,5.14682759]
[1770750466585,10.861,82.911,82.851,5.12924312]
[1770750467086,10.8621,82.902,82.851,5.12924312]
[1770750467779,10.8635,82.892,82.836,5.1222097]
[1770750468282,10.8645,82.884,82.836,5.1222097]
[1770750468882,9.99730935,82.9,82.8,9.99730935]
[1770750468883,10.8652,82.879,82.816,5.1222097]
[1770750469796,9.99730935,82.88,82.816,5.1222097]
[1770750469982,9.99730935,82.86,82.791,5.12484646]
[1770750470384,10.8686,82.853,82.795,10.8761]
[1770750472292,9.99730935,82.86,82.774,5.11690962]
[1770750472594,9.99730935,82.84,82.774,5.11690962]
[1770750472984,10.8711,82.834,82.774,15.99570962]
[1770750473387,9.99730935,82.84,82.774,5.11690962]
[1770750473685,96.38,82.839,82.756,5.11690962]
[1770750473883,8.69431048,82.838,82.756,5.11690962]
[1770750474286,10.8744,82.809,82.756,5.11690962]
[1770750474484,9.99730935,82.82,82.756,5.11690962]
[1770750475888,10.873,82.82,82.758,5.1144518]
[1770750476487,9.99730935,82.84,82.758,5.1144518]
[1770750476688,21.86379831,82.881,82.74,9.99730935]
[1770750476689,10.8695,82.846,82.789,5.1144518]
[1770750476883,9.99730935,82.86,82.789,5.1144518]
[1770750477279,10.8706,82.838,82.774,5.1144518]
[1770750477787,10.8716,82.83,82.777,5.10706274]
[1770750479193,10.8727,82.822,82.777,5.10706274]
[1770750479392,9.99730935,82.84,82.777,5.10706274]
[1770750480189,10.8705,82.838,82.779,5.11723055]
[1770750480381,9.99730935,82.84,82.779,5.11723055]
[1770750480993,100.1,82.849,82.779,5.11723055]
[1770750481194,10.8702,82.841,82.788,10.8771]
[1770750481494,10.8702,82.841,82.779,5.11723055]
[1770750482595,10.8711,82.834,82.78,10.8781]
[1770750482795,10.8711,82.834,82.781,5.11699233]
[1770750483591,10.87,82.842,82.786,5.11699233]
[1770750483893,100.1,82.849,82.729,21.7696]
[1770750483894,10.00276233,82.83,82.761,5.11693173]
[1770750484689,10.8732,82.818,82.762,10.8804]
[1770750484884,10.8732,82.818,82.763,5.11693173]
[1770750485691,10.8732,82.818,82.767,5.14224026]
[1770750487590,20.87436233,82.83,82.769,5.14224026]
[1770750487794,8.69549285,82.843,82.769,5.14224026]
[1770750487997,10.84397343,82.879,82.769,5.14224026]
[1770750488197,96.4,82.865,82.769,5.14224026]
[1770750488499,8.69549285,82.864,82.769,5.14224026]
[1770750488886,36.34,82.863,82.769,5.14224026]
[1770750489090,10.87,82.842,82.785,10.8774]
[1770750489395,10.87,82.842,82.786,5.13953453]
[1770750489598,10.00276233,82.87,82.791,5.13953453]
[1770750489898,18.70129515,82.91,82.821,5.13612856]
[1770750490100,10.00276233,82.91,82.821,5.13612856]
[1770750490305,10.00276233,82.89,82.821,5.13612856]
[1770750491705,10.00276233,82.87,82.801,5.11160394]
[1770750492599,10.8665,82.869,82.805,10.8747]
[1770750494404,10.8675,82.862,82.805,10.8747]
[1770750495096,10.8675,82.862,82.801,5.11160394]
[1770750496206,10.8684,82.855,82.801,5.11160394]
[1770750498810,18.71240258,82.87,82.801,5.11160394]
[1770750499506,10.8701,82.842,82.801,5.11160394]
[1770750499705,18.71240258,82.87,82.801,5.11160394]
[1770750499706,10.00276233,82.87,82.801,5.11160394]
[1770750499904,18.71340459,82.87,82.801,5.11160394]
[1770750500412,10.8695,82.846,82.792,10.8765]
[1770750500610,10.00276233,82.85,82.785,5.15480451]
[1770750500811,10.00276233,82.85,82.761,5.15481113]
[1770750501011,96.38,82.849,82.761,5.15481113]
[1770750501211,8.71064226,82.848,82.761,5.15481113]
[1770750501714,10.8721,82.826,82.772,10.8791]
[1770750502317,10.8721,82.826,82.775,10.8787]
[1770750504117,18.71581479,82.84,82.784,5.16398592]
[1770750504414,10.00517253,82.86,82.784,5.16398592]
[1770750505716,10.8696,82.846,82.796,5.16100206]
[1770750506318,10.00517253,82.86,82.796,5.16100206]
[1770750506821,10.8694,82.847,82.798,10.8757]
[1770750507120,10.8694,82.847,82.799,5.16100206]
[1770750507917,10.8679,82.858,82.806,5.16135286]
[1770750509833,10.8679,82.858,82.809,10.8743]
[1770750510325,10.8679,82.858,82.809,16.03100581]
[1770750510926,10.8689,82.851,82.809,5.15670581]
[1770750511617,10.8689,82.851,82.8,10.8754]
[1770750511821,8.71064226,82.859,82.777,5.15712906]
[1770750512023,8.71064226,82.858,82.777,5.15712906]
[1770750512219,8.71064226,82.857,82.777,5.15712906]
[1770750512427,8.71064226,82.858,82.791,5.15712906]
[1770750512626,10.00517253,82.86,82.791,5.15712906]
[1770750513032,10.8683,82.856,82.802,5.15712906]
[1770750513326,10.00517253,82.86,82.802,5.15712906]
[1770750514123,8.71064226,82.859,82.802,5.15712906]
[1770750514332,10.00517253,82.86,82.802,5.15712906]
[1770750514735,10.8691,82.849,82.802,5.15712906]
[1770750517224,10.8682,82.856,82.808,5.15783959]
[1770750517834,10.8693,82.848,82.799,10.8756]
[1770750518034,36.34,82.855,82.775,5.1583456]
[1770750518233,10.00517253,82.82,82.721,5.1583456]
[1770750518635,10.00517253,82.82,82.746,5.1583456]
[1770750518832,8.71064226,82.819,82.746,5.1583456]
[1770750519032,8.71064226,82.818,82.746,5.1583456]
[1770750519225,10.00517253,82.8,82.73,5.1583456]
[1770750519735,10.8771,82.788,82.73,5.1583456]
[1770750522041,10.8785,82.778,82.73,5.1583456]
[1770750522734,10.00517253,82.8,82.73,5.1583456]
[1770750523536,10.00517253,82.8,82.733,5.28033814]
[1770750523943,18.73459096,82.8,82.733,5.28033814]
[1770750524635,18.73459096,82.8,82.716,5.26213056]
[1770750524842,10.8772,82.787,82.723,10.8856]
[1770750525236,10.8772,82.787,82.724,5.26213056]
[1770750525944,10.876,82.796,82.726,5.26010571]
[1770750527837,10.876,82.796,82.733,5.25971528]
[1770750529042,10.876,82.796,82.735,10.884]
[1770750530742,10.8741,82.811,82.75,5.28908321]
[1770750531043,119.34517253,82.81,82.75,5.28908321]
[1770750532645,10.8745,82.808,82.75,5.28908321]
[1770750532843,8.71121126,82.809,82.721,5.28954153]
[1770750533741,10.8759,82.797,82.737,10.8838]
[1770750534150,10.8759,82.797,82.721,5.28954153]
[1770750534151,10.00517253,82.79,82.721,5.28954153]
[1770750534445,10.8784,82.778,82.721,5.28954153]
[1770750535151,10.00517253,82.77,82.704,5.2670568]
[1770750535344,10.00517253,82.77,82.705,10.8879]
[1770750535543,10.00517253,82.77,82.705,5.2670568]
[1770750536748,10.00517253,82.77,82.712,10.887]
[1770750537741,10.8796,82.769,82.712,10.887]
[1770750538136,10.8796,82.769,82.712,16.16374486]
[1770750538447,10.00517253,82.79,82.614,508.6676]
[1770750538448,109.62,82.787,82.726,5.27674486]
[1770750539051,10.8783,82.779,82.726,5.27674486]
[1770750540047,0.39677378,82.786,82.726,2.67674486]
[1770750540249,0.39677378,82.785,82.7,10.00517253]
[1770750540449,0.39677378,82.785,82.68,10.00517253]
[1770750540650,10.00517253,82.77,82.68,10.00517253]
[1770750540845,0.39677378,82.769,82.68,10.02220359]
[1770750541349,0.39677378,82.764,82.68,10.02220359]
[1770750542244,0.39677378,82.764,82.681,4.10345157]
[1770750542641,10.8804,82.763,82.706,4.10345157]
[1770750543846,10.8804,82.763,82.712,10.887]
[1770750544945,10.8804,82.763,82.718,10.8862]
[1770750545750,0.35662775,82.783,82.722,4.10345157]
[1770750546644,0.35662775,82.798,82.741,4.10345157]
[1770750546849,96.46,82.808,82.741,4.10345157]
[1770750547151,0.35662775,82.814,82.741,4.10345157]
[1770750547549,0.35662775,82.829,82.741,4.10345157]
[1770750548348,0.42654749,82.826,82.767,10.8798]
[1770750548548,0.42654749,82.826,82.767,4.10345157]
[1770750549851,0.42654749,82.826,82.774,10.8789]
[1770750550452,0.42654749,82.826,82.767,4.10345157]
[1770750550453,109.84,82.836,82.784,4.10345157]
[1770750550649,0.42015037,82.842,82.784,4.10345157]
[1770750551661,0.42015037,82.842,82.793,10.8764]
[1770750552161,8.72023811,82.855,82.794,4.10345157]
[1770750552365,0.43449223,82.88,82.813,4.10345157]
[1770750552755,0.43449223,82.88,82.823,4.10345157]
[1770750552956,10.01373129,82.89,82.823,4.10345157]
[1770750553162,0.43449223,82.9,82.823,4.10345157]
[1770750553357,0.43449223,82.9,82.847,4.10345157]
[1770750553660,109.64,82.908,82.847,4.10345157]
[1770750554062,0.43449223,82.916,82.849,4.10345157]
[1770750554263,0.45096329,82.95,82.881,4.10345157]
[1770750554560,0.45096329,82.95,82.901,10.8622]
[1770750554764,0.45096329,82.95,82.882,4.10345157]
[1770750554960,0.45096329,82.95,82.87,10.01373129]
[1770750554961,10.01373129,82.99,82.91,10.01373129]